Cogmind - Beta 16 --- EXPLORER MODE // 2026.01.29 @ 17:45:44 Player: K.K.Y. Result: Destroyed by Z1-MGQ(R) with Subdweller Machine Gun Performance ------------- Evolutions (0) 0 Regions Visited (3) 600 Robots Destroyed (34) 170 Value Destroyed (762) 762 Prototype IDs (0) 0 Alien Tech Used (0) 0 Bonus (-27) -27 TOTAL SCORE: 1505 Bonus ------- Friendly Fire -27 Cogmind --------- Core Integrity 0/250 Matter 285/300 Energy 247/250 System Corruption 0% Temperature Cool (0) Movement Treading (160) Location -10/Subcaves Parts ------- > --- POWER (1) -------- Ion Engine > --- PROPULSION (2) --- Light Treads Light Treads > --- UTILITY (3) ------ Large Storage Unit Sensor Array > --- WEAPON (2) ------- Particle Gun Heavy Battle Rifle > --- INVENTORY (15) --- Light Treads Spiked Treads Flexi-carbon Leg Flexi-carbon Leg Scrap Suit High-capacity Storage Unit Sensor Array Improved Terrain Scanner Armor Integrity Analyzer Medium Laser Medium Laser Barrage Gun Mining Laser Multitool Peak State ------------ > --- POWER ------------ Subdweller Power Source > --- PROPULSION ------- Light Treads Light Treads > --- UTILITY ---------- Large Storage Unit Sensor Array > --- WEAPON ----------- Particle Gun Heavy Battle Rifle > --- INVENTORY -------- Light Treads Spiked Treads Flexi-carbon Leg Flexi-carbon Leg Scrap Suit High-capacity Storage Unit Sensor Array Improved Terrain Scanner Armor Integrity Analyzer Medium Laser Medium Laser Barrage Gun Mining Laser Multitool [Rating: 15] Favorites ----------- Power Light Nuclear Core Engine Light Ion Engine Power Core Light Nuclear Core Propulsion Light Treads Treads Light Treads Utility Sensor Array Device Sensor Array Storage Large Storage Unit Weapon Medium Laser Energy Gun Medium Laser Ballistic Gun Assault Rifle Special Weapon Mining Laser Build | -11 -10 -10 -10 ------- Run | Yrd Mat Min Sub Slots Evolved 1 | . 1 . . Power . | . . . . Propulsion . | . . . . Utility 1 | . 1 . . Weapon . | . . . . Parts Attached 21 | 7 7 1 6 Power 4 | 1 1 . 2 Engine 3 | 1 . . 2 Core 1 | . 1 . . Reactor . | . . . . Propulsion 5 | 2 . 1 2 Treads 5 | 2 . 1 2 Leg . | . . . . Wheel . | . . . . Hover . | . . . . Flight . | . . . . Utility 6 | 2 3 . 1 Device 4 | 1 2 . 1 Storage 2 | 1 1 . . Processor . | . . . . Hackware . | . . . . Protection . | . . . . Artifact . | . . . . Weapon 6 | 2 3 . 1 Energy Gun 3 | 1 2 . . Energy Cannon . | . . . . Ballistic Gun 2 | 1 . . 1 Ballistic Cannon . | . . . . Launcher . | . . . . Special Weapon 1 | . 1 . . Impact Weapon . | . . . . Slashing Weapon . | . . . . Piercing Weapon . | . . . . Special Melee Weapon . | . . . . Unidentified Prototypes . | . . . . Parts Lost 3 | . . . 3 Power 1 | . . . 1 Propulsion 1 | . . . 1 Utility 1 | . . . 1 Weapon . | . . . . Highest Loss Streak 2 | . . . 2 To Critical Strikes 1 | . . . 1 Average Backups 11 | 1 8 12 13 Power . | . . . . Propulsion 4 | . 3 4 4 Utility 3 | . 1 4 5 Weapon 3 | . 3 3 4 Tool/Special . | . . . . Unused Backups 12 | . 1 . 11 Power . | . . . . Propulsion 4 | . . . 4 Utility 5 | . 1 . 4 Weapon 2 | . . . 2 Tool/Special 1 | . . . 1 Average Slot Usage (%) 90 | . 81 100 90 Engine 2 | . 5 . 1 Core 6 | . 2 12 4 Treads 23 | . 21 25 24 Device 20 | . 14 25 21 Storage 12 | . 12 12 12 Energy Gun 19 | . 14 25 18 Ballistic Gun 3 | . 8 . 3 Peak Build Rating 15 | 7 12 14 15 Average Rating 11 | 4 7 13 12 On Entrance 8 | . 7 12 14 Avg Prop Armor Cover (%) . | . . . . Naked Turns . | . . . . Heaviest Build 33 | 18 32 32 33 Greatest Support 40 | 40 40 40 40 Greatest Overweight (x) 6 | 1 6 . 1 Average Overweight (x) . | . . . . Largest Inventory Capacity 15 | 10 15 15 15 Average Capacity 14 | 7 14 15 15 Most Carried 15 | 5 15 15 15 Average Carried 11 | 1 8 12 14 Final Capacity 15 | 10 15 15 15 Final Carried 15 | 2 10 15 15 Class Distribution -------------------- 100% | Hacker-Mutant Dominant Class ---------------- Hacker-Mutant | -10/Materials Hacker-Mutant | -10/Mines Hacker-Mutant | -10/Subcaves Resources | -11 -10 -10 -10 ----------- Run | Yrd Mat Min Sub Matter Collected 715 | 212 264 110 129 Remotely . | . . . . Salvage Created 1000 | 106 408 93 393 Parts 62 | 6 40 4 12 Haulers Intercepted . | . . . . Recyclers Shooed . | . . . . Parts Field Recycled . | . . . . Retrieved Matter . | . . . . Parts Self-Destructed . | . . . . Prevented . | . . . . Parts Restored . | . . . . Kills | -11 -10 -10 -10 ------- Run | Yrd Mat Min Sub Combat Hostiles Destroyed 27 | . 11 7 9 Guns 27 | . 11 7 9 Classes Destroyed 10 | 2 4 3 1 Worker 1 | . . 1 . Builder 6 | . 6 . . Tunneler 1 | 1 . . . Recycler 1 | 1 . . . Watcher 2 | . 2 . . Swarmer 8 | . 6 2 . Grunt 5 | . 5 . . Demolisher 1 | . . 1 . Subdweller 9 | . . . 9 Assembled 4 | . . 4 . Best Kill Streak 4 | 2 3 4 2 Combat Bots Only 3 | . 2 3 2 Max Kills in Single Turn 2 | 1 2 1 2 Gunslinging 1 | . 1 . 1 Exploded . | . . . . Melee . | . . . . Uniques/NPCs Destroyed . | . . . . Combat | -11 -10 -10 -10 -------- Run | Yrd Mat Min Sub Hostile Shots Fired 131 | . 39 18 74 Missed 29 | . 10 1 18 Hits 102 | . 29 17 56 Melee 2 | . . 2 . Projectile 100 | . 29 15 56 Critical Strikes 2 | . . . 2 Damage Taken 1127 | . 181 164 782 Core 250 | . 39 31 180 Absorbed by Shields . | . . . . Ignored by Resistances 682 | . 120 97 465 Core Remaining (%) 100 | 100 . . . Volleys Fired 115 | 7 37 17 54 Largest 2 | 2 2 2 2 Hottest 165 | 70 150 115 165 Shots Fired 227 | 14 74 34 105 Gun 219 | 14 73 34 98 Cannon . | . . . . Launcher . | . . . . Special 8 | . 1 . 7 Kinetic 65 | 7 35 . 23 Thermal 162 | 7 39 34 82 Explosive . | . . . . Electromagnetic . | . . . . Robot Hit Streak 38 | 14 36 8 38 Robot Miss Streak 2 | . 1 2 1 Penetration Max . | . . . . Secondary Targets 5 | . 1 2 2 Max Gunslinging Chain 1 | . 1 1 1 Shots Hit Robots 169 | 14 58 22 75 Core Hits 60 | 3 25 14 18 Critical Kills . | . . . . Critical Parts Destroyed . | . . . . Critical Strikes 5 | . 1 1 3 Burn 5 | . 1 1 3 Melee Attacks . | . . . . Impact . | . . . . Slashing . | . . . . Piercing . | . . . . Sneak Attacks . | . . . . Combat Hostiles . | . . . . Follow-up Attacks . | . . . . Damage Inflicted 2342 | 181 703 338 1120 Guns 2339 | 181 703 335 1120 Cannons . | . . . . Explosions . | . . . . Melee . | . . . . Ramming 3 | . . 3 . Kinetic 765 | 95 282 . 388 Thermal 1574 | 86 421 335 732 Explosive . | . . . . Electromagnetic . | . . . . Impact . | . . . . Slashing . | . . . . Piercing . | . . . . Highest Corruption . | . . . . Average Corruption . | . . . . Corruption Purged . | . . . . Corruption Blocked . | . . . . Overload Shots . | . . . . Overflow Damage . | . . . . Projectiles . | . . . . Explosions . | . . . . Melee . | . . . . Knockbacks . | . . . . Impact . | . . . . Kinetic . | . . . . Secondary . | . . . . Self-Inflicted Damage . | . . . . Shots . | . . . . Rammed 1 | . . 1 . Targets Rammed 1 | . . 1 . Kicked . | . . . . Crushed . | . . . . Highest Temperature 560 | 54 120 560 60 Average Temperature 94 | 26 27 200 24 Received Heat Transfer 425 | . 108 140 177 Effects 4 | . . 4 . Shutdowns 2 | . . 2 . Energy Bleed 1 | . . 1 . Short Circuit 1 | . . 1 . Siege Activations . | . . . . Martial Activations . | . . . . Shielding Activations . | . . . . Robots Disrupted . | . . . . Combat Hostiles . | . . . . Robots Corrupted . | . . . . Combat Hostiles . | . . . . Parts Fried . | . . . . Impact Corruptions . | . . . . Robots Melted . | . . . . Combat Hostiles . | . . . . Parts Melted 7 | . 1 . 6 Heat Transferred 4662 | 259 1332 962 2109 Parts Sabotaged . | . . . . Parts Stolen . | . . . . Parts Stripped . | . . . . Power Chain Reactions . | . . . . Alert | -11 -10 -10 -10 ------- Run | Yrd Mat Min Sub Maximum Alert Level . | . . . . Low Security (%) 100 | 100 100 100 . Level 1 . | . . . . Level 2 . | . . . . Level 3 . | . . . . Level 4 . | . . . . Level 5 . | . . . . High Security . | . . . . Max Security . | . . . . Peak Influence 104 | 10 104 40 . Initial . | . . . . Average 7 | . 13 1 . Influence Increases 473 | 10 378 85 . Destroy 0b10 Robot/C 280 | . 220 60 . Destroy 0b10 Robot/NC 55 | 10 40 5 . Destroy Leader 74 | . 54 20 . Successful Hack 30 | . 30 . . Disable Machine 4 | . 4 . . Lose Combat Pursuer 30 | . 30 . . Influence Decreases 473 | 10 378 85 . Time Decay 473 | 10 378 85 . Squads Dispatched 1 | . 1 . . Investigation 1 | . 1 . . Extermination . | . . . . Reinforcement . | . . . . Assault . | . . . . Garrison . | . . . . Intercept . | . . . . Searches Triggered . | . . . . Construction Impeded . | . . . . Haulers Reinforced . | . . . . Active Scanning Responses . | . . . . Cargo Convoy Interrupts . | . . . . Stealth | -11 -10 -10 -10 --------- Run | Yrd Mat Min Sub Distress Signals 2 | . 2 . . Communications Jammed . | . . . . Distress Signals . | . . . . Times Spotted 43 | . 21 11 11 Peak Tracking Total 4 | . 3 4 4 Tactical Retreats 3 | . 1 2 . Traps | -11 -10 -10 -10 ------- Run | Yrd Mat Min Sub Traps Triggered 6 | . 6 . . Indirectly . | . . . . Trap Hack Attempts . | . . . . Triggered . | . . . . Disarmed 7 | . 7 . . Reprogrammed 1 | . 1 . . Reused . | . . . . Traps Extracted . | . . . . Installed . | . . . . Triggered . | . . . . Machines | -11 -10 -10 -10 ---------- Run | Yrd Mat Min Sub Machines Disabled 1 | . 1 . . Max in Single Turn 1 | . 1 . . Machines Repaired . | . . . . Machines Dismantled . | . . . . Machines Sabotaged . | . . . . Overloaded Fab Kills . | . . . . Hacking | -11 -10 -10 -10 --------- Run | Yrd Mat Min Sub Machines Accessed 9 | . 9 . . Terminals 7 | . 7 . . Fabricators . | . . . . Repair Stations . | . . . . Recycling Units 2 | . 2 . . Scanalyzers . | . . . . Garrison Access . | . . . . Total Hacks 30 | . 30 . . Successful 18 | . 18 . . Failed 12 | . 12 . . Catastrophic . | . . . . Database Lockouts . | . . . . Manual 18 | . 18 . . Terminals 25 | . 25 . . Fabricators . | . . . . Repair Stations . | . . . . Recycling Units 5 | . 5 . . Scanalyzers . | . . . . Garrison Access . | . . . . Terminal Hacks 16 | . 16 . . Part Schematic 7 | . 7 . . Robot Schematic 4 | . 4 . . Disarm Traps 3 | . 3 . . Reprogram Traps 2 | . 2 . . Fabricator Hacks . | . . . . Repair Station Hacks . | . . . . Recycling Unit Hacks 2 | . 2 . . Retrieve Components 2 | . 2 . . Scanalyzer . | . . . . Garrison Access Hacks . | . . . . Unauthorized Hacks . | . . . . Terminals . | . . . . Fabricators . | . . . . Repair Stations . | . . . . Recycling Units . | . . . . Scanalyzers . | . . . . Garrison Access . | . . . . Data Cores Recovered . | . . . . Used . | . . . . Hacking Detections 8 | . 8 . . Full Trace Events 3 | . 3 . . Feedback Events . | . . . . Feedback Blocked . | . . . . Robot Schematics Acquired 4 | . 4 . . Robots Built . | . . . . Authchips . | . . . . Time . | . . . . Total Robot Build Rating . | . . . . Part Schematics Acquired 5 | . 5 . . Parts Built . | . . . . Authchips . | . . . . Time . | . . . . Total Part Build Rating . | . . . . Part Studies Acquired . | . . . . Parts Repaired . | . . . . Time . | . . . . Parts Recycled . | . . . . Recycled Matter . | . . . . Retrieved Matter . | . . . . Retrieved Components 11 | . 11 . . Parts Scanalyzed . | . . . . Part Schematics Acquired . | . . . . Parts Damaged . | . . . . Bothacking | -11 -10 -10 -10 ------------ Run | Yrd Mat Min Sub Used RIF Installer . | . . . . Robots Hacked . | . . . . Non-combat . | . . . . Combat . | . . . . Robot Hacks Applied . | . . . . Relay Couplers Released . | . . . . Fabnet Peak Effective % . | . . . . Robots Rewired . | . . . . Allies Hacked . | . . . . Hacks Repelled . | . . . . Allies | -11 -10 -10 -10 -------- Run | Yrd Mat Min Sub Total Allies . | . . . . Largest Group . | . . . . Highest-Rated Group . | . . . . Highest-Rated Ally . | . . . . Total Orders . | . . . . Ally Attacks . | . . . . Total Damage . | . . . . Kills . | . . . . Allies Corrupted . | . . . . Allies Melted . | . . . . Intel | -11 -10 -10 -10 ------- Run | Yrd Mat Min Sub Active Infowar (turns) 4367 | 46 1527 1616 1178 Sensors 4367 | 46 1527 1616 1178 Structural 2824 | . 337 1616 871 Robot Analysis Total . | . . . . Derelict Logs Recovered 1 | . . . 1 Drone Launches . | . . . . Drone Recoveries . | . . . . Exploration | -11 -10 -10 -10 ------------- Run | Yrd Mat Min Sub Turns Passed 4416 | 80 1542 1616 1178 Spaces Moved 2099 | 51 749 765 534 Core 41 | 36 5 . . Treads 2058 | 15 744 765 534 Legs . | . . . . Wheels . | . . . . Hover . | . . . . Flight . | . . . . Fastest Speed 50 | 50 160 160 160 Average Speed 164 | 89 177 160 160 Slowest Speed 350 | 160 350 160 240 Overloaded Moves . | . . . . Propulsion Burnouts . | . . . . Robots Hopped . | . . . . Potential Cave-ins . | . . . . Cave-ins Triggered . | . . . . Exploration Rate (%) 60 | 5 97 101 38 Regions Visited 3 Branch Regions 2 Pre-discovered Areas 1 | . . 1 . Known Exits Taken 3 | 1 1 1 . Unknown Exits Taken . | . . . . Scrap Searched 12 | . . 1 11 Spaces Dug . | . . . . Terrain Destroyed . | . . . . Melee . | . . . . Projectile . | . . . . AOE . | . . . . Terrain Rammed . | . . . . Walls Destroyed . | . . . . Machines Disabled . | . . . . Actions | -11 -10 -10 -10 --------- Run | Yrd Mat Min Sub Total 2824 | 71 890 1124 739 Wait 527 | . 58 332 137 Move 2096 | 50 748 764 534 Hop . | . . . . Pick Up 40 | 7 24 6 3 Fast Attach 3 | 2 . . 1 Attach 22 | 5 15 1 1 Detach 3 | . 2 1 . Swap 9 | . 3 . 6 Drop 8 | . 3 2 3 Fire 115 | 7 37 17 54 Melee . | . . . . Ram . | . . . . Kick . | . . . . Crush 1 | . . 1 . Escape Stasis . | . . . . Rewire . | . . . . Trap . | . . . . Miscellaneous . | . . . . Route ------- -11/Scrapyard -10/Materials (discovered 5 exits: *Mat x3 / *Min x2) -10/Mines (discovered 3 exits: *Mat x2 / *Sub) -10/Subcaves History --------- Turn | Location | Event 16 | -11/Scrapyard | Identified exit to Materials 16 | -11/Scrapyard | Discovered exit to Materials (range 14) 81 | -11/Scrapyard | Entered Materials 81 | -10/Materials | Evolved 1 slot: Utility x1 240 | -10/Materials | Identified exit to Mines 240 | -10/Materials | Discovered exit to Mines (range 15) 310 | -10/Materials | Build established: Hacker-Mutant 357 | -10/Materials | Identified exit to Materials 357 | -10/Materials | Discovered exit to Materials (range 5) 770 | -10/Materials | Discovered exit to Mines (range 12) 1236 | -10/Materials | Discovered exit to Materials (range 16) 1426 | -10/Materials | Discovered exit to Materials (range 16) 1623 | -10/Materials | Entered Mines 1630 | -10/Mines | Received a Rocket Launcher from a helpful Derelict 1706 | -10/Mines | Assembled infested the area 1711 | -10/Mines | Assisted by a Guerilla fighting off Assembled 2241 | -10/Mines | Found a Scrap Suit stashed away for nefarious purposes 2244 | -10/Mines | Found Scrap Suit 2311 | -10/Mines | Discovered exit to Materials (range 7) 2351 | -10/Mines | A weapon hastily lodged in a ceiling crevice suddenly fell to the ground 2397 | -10/Mines | Learned location of Storage (-9) 2569 | -10/Mines | Discovered exit to Materials (range 8) 3215 | -10/Mines | Identified exit to Subcaves 3215 | -10/Mines | Discovered exit to Subcaves (range 11) 3239 | -10/Mines | Entered Subcaves 3259 | -10/Subcaves | Shifting Twisted Machinery released Sub. Power Source 3261 | -10/Subcaves | Shifting Twisted Machinery released Battle Rifle 3356 | -10/Subcaves | Shifting Twisted Machinery released Scrap Shield 4072 | -10/Subcaves | Core integrity fell below 50% 4192 | -10/Subcaves | Disturbed a concealed Subdweller 4254 | -10/Subcaves | Learned Materials emergency access door positions 4299 | -10/Subcaves | Core integrity fell below 20% 4417 | -10/Subcaves | Destroyed by Z1-MGQ(R) with Subdweller Machine Gun Last Messages --------------- 04208_ Found Flamer. 04208_ Found 47 Matter. 04209_ Searching scrap... 04209_ Found Sub. Monowheel. 04209_ Found Flamer. 04209_ Found 37 Matter. 04224_ Acquired Sub. Power Source. 04225_ Acquired 10 matter. 04235_ Acquired Ion Engine. 04254_ Acquired derelict log, extracted data. Data stored: Materials emergency access points. 04275_ SL-JTQ(R): "SUBHATE!" 04308_ Sub. Beam Cannon melted. 04308_ SL-JTQ(R) destroyed. 04311_ Acquired 25 matter. 04413_ Sub. Power Source melted. 04413_ Sub. Beam Cannon melted. 04413_ EA-QUW(R) destroyed. 04413_ Switching to secondary target: AV-L45(R). 04413_ AV-L45(R) destroyed. Map ----- +----------------------------------------------------+ | | | | | | | ?????????????????????????????????????????????????? | | ?????????????????????????????????????????????????? | | ?????????????????????????????????????????????????? | | ?????????????????????????????????????????????????? | | ?????????????????????????????????????????????????? | | ?????????????????????????????????????????????????? | | ?????????????????????????????????????????????????? | | ?????????????????????????????????????????????????? | | ?????????????????????????????????????????????????? | | ?????????????????????????????????????????????????? | | ?????????????????????????????????????????????????? | | ?????????????????????????????????????????????????? | | ?????????????????????????????????????????????????? | | ?????????????????????????????????????????????????? | | ??????????#######??????######????####????????????? | | #######?### #?????## ##?## ###??????????? | | # ### #??#### #? ##?????????? | | #?## ## ??????????? | | ### ????????????? | | ### #?????????????????? | | ### !| #?????????????????? | | ## ### %!R #?????????????????? | | ########?## @R& ### ?????? | | ### #?????????# ;# ?????? | | ??## #?????????# ##### ?????? | | ???# #???#####?# #?? ###???????? | | ???# #?? ### ##? ##?????????? | | ???## ### ######? # ###??????????? | | ????# ##??# ##### #????????????? | | ????# #?# ""#???? #????????????? | | ???## " """"## ""#????? ???????????? | | ???# " """#?# ""#?????? ??????????? | | ??## ##""??""??#"""????????" ?????????? | | ??# #?????????" ???????????? ?????????? | | ??# ##?????????# ??????????????????????? | | ?## #" #??????????? ??????????????????????? | | ## ### "#??????????????????????????????????? | | &%"#?# #??????????????????????????????????? | | ## #??# ##??????????????????????????????????? | | # #???####???????????????????????????????????? | | ## #??????????????????????????????????????????? | | # #??????????????????????????????????????????? | | #??????????????????????????????????????????? | | # ##??????????????????????????????????????????? | | # ##"#???????????????????????????????????????????? | | # ##"##??????????????????????????????????????????? | | # ## #??????????????????????????????????????????? | +----------------------------------------------------+ Best States ------------- Heat Dissipation 25 Energy Generation 15 Energy Capacity 250 Matter Stores 300 Matter Capacity 300 Sight Range 16 Robot Scan Range 14 Terrain Scan Density 10 Resistance: KI 35 Resistance: TH 35 Resistance: EX 35 Resistance: EM 35 Resistance: I 35 Resistance: S 35 Resistance: P 35 Evasion (%) 50 Recoil Reduction 2 Offensive Hacking 20 Item Schematics ----------------- Huge Storage Unit | -10/Materials | Hacked Lrg. Storage Unit | -10/Materials | Hacked Datajack | -10/Materials | Hacked Hcp. Storage Unit | -10/Materials | Hacked Cargo Storage Unit | -10/Materials | Hacked Robot Schematics ------------------ W-16 Scout | -10/Materials | Hacked S-10 Pest | -10/Materials | Hacked G-34 Mercenary | -10/Materials | Hacked M-13 Machinist | -10/Materials | Hacked Fabricated ------------ Nothing Repaired ---------- Nothing Studied --------- None Alien Tech Used ----------------- None Achievements -------------- None Challenges ------------ None Game ------ Seed FrostDispersionGriptreads Manual? 0 Play Time 00:25:12 Cumulative 324.3 hours Start 2026.01.29 @ 16:27:50 End 2026.01.29 @ 17:45:44 Sessions 1 Manual Loads 0 Difficulty Explorer Special Mode None Game No. 511 Rogue 0 Adventurer 0 Explorer 511 Win Type - Total 0 Types 0/0/0/0/0/0/0/0/0/0 Lore% 77 Gallery% 70 Achievement% 56 Wizard Run 0 Options --------- Layout 1 ASCII 0 Keyboard 0 Movement Mouse Keybinds 1 Fullscreen 1 Font 24/Smallcaps Map View 50x35 Zoom Use 0% Tactical HUD 1 Map Filters NONE Filters NONE Steam 1 RUN: 902440a5-5483-49d1-85f6-b9f5e8479186